[Event "Titled Tuesday Blitz June 27 Early 2023"]
[White "Molina, Roberto Junio Brito"]
[Black "Gubajdullin, Alexei"]
[WhiteFideId "2109450"]
[BlackFideId "4141202"]
[WhiteElo "2839"]
[BlackElo "2603"]
[Result "1-0"]
[Round "6"]
[TimeControl "180+2"]
[Date "2023.06.27"]
[WhiteClock "0:00:07"]
[BlackClock "0:00:00"]
[Board "50"]

1. e4 {[%clk 0:03:00]}  c6 {[%clk 0:02:56]} 2. d4 {[%clk 0:03:00]}  d5 {[%clk 0:02:56]} 3. exd5 {[%clk 0:03:01]}  cxd5 {[%clk 0:02:55]} 4. Bd3 {[%clk 0:03:01]}  Nf6 {[%clk 0:02:55]} 5. c3 {[%clk 0:03:01]}  Nc6 {[%clk 0:02:55]} 6. Bf4 {[%clk 0:03:01]}  g6 {[%clk 0:02:54]} 7. Nf3 {[%clk 0:03:01]}  Bg7 {[%clk 0:02:54]} 8. O-O {[%clk 0:03:00]}  O-O {[%clk 0:02:54]} 9. Nbd2 {[%clk 0:03:00]}  Bf5 {[%clk 0:02:53]} 10. Qe2 {[%clk 0:02:59]}  Bxd3 {[%clk 0:02:48]} 11. Qxd3 {[%clk 0:03:00]}  Nd7 {[%clk 0:02:41]} 12. Rfe1 {[%clk 0:03:00]}  e6 {[%clk 0:02:40]} 13. h4 {[%clk 0:02:58]}  Qb6 {[%clk 0:02:36]} 14. Rab1 {[%clk 0:02:51]}  Qa6 {[%clk 0:02:31]} 15. Qxa6 {[%clk 0:02:49]}  bxa6 {[%clk 0:02:31]} 16. Kf1 {[%clk 0:02:46]}  a5 {[%clk 0:02:29]} 17. b3 {[%clk 0:02:40]}  Rfc8 {[%clk 0:02:26]} 18. Rbc1 {[%clk 0:02:36]}  a4 {[%clk 0:02:21]} 19. Ke2 {[%clk 0:02:32]}  axb3 {[%clk 0:02:08]} 20. axb3 {[%clk 0:02:33]}  a5 {[%clk 0:02:08]} 21. Kd3 {[%clk 0:02:30]}  Bf8 {[%clk 0:02:03]} 22. Ra1 {[%clk 0:02:28]}  Nb6 {[%clk 0:01:59]} 23. Ne5 {[%clk 0:02:15]}  Nxe5+ {[%clk 0:01:55]} 24. Bxe5 {[%clk 0:02:16]}  a4 {[%clk 0:01:28]} 25. b4 {[%clk 0:02:14]}  Be7 {[%clk 0:01:18]} 26. g3 {[%clk 0:02:12]}  h5 {[%clk 0:01:12]} 27. Ra2 {[%clk 0:02:09]}  Kf8 {[%clk 0:01:12]} 28. Rea1 {[%clk 0:02:07]}  Ke8 {[%clk 0:01:08]} 29. Bf4 {[%clk 0:01:59]}  Kd7 {[%clk 0:00:56]} 30. Nf1 {[%clk 0:01:59]}  Rc6 {[%clk 0:00:43]} 31. Bd2 {[%clk 0:01:53]}  f6 {[%clk 0:00:39]} 32. f4 {[%clk 0:01:37]}  Rcc8 {[%clk 0:00:36]} 33. Ne3 {[%clk 0:01:37]}  g5 {[%clk 0:00:32]} 34. hxg5 {[%clk 0:01:28]}  fxg5 {[%clk 0:00:32]} 35. f5 {[%clk 0:01:21]}  Bd6 {[%clk 0:00:28]} 36. fxe6+ {[%clk 0:01:20]}  Kxe6 {[%clk 0:00:28]} 37. Rh1 {[%clk 0:01:20]}  Rh8 {[%clk 0:00:27]} 38. Be1 {[%clk 0:01:15]}  Raf8 {[%clk 0:00:22]} 39. Rah2 {[%clk 0:01:11]}  h4 {[%clk 0:00:19]} 40. Rh3 {[%clk 0:01:10]}  a3 {[%clk 0:00:19]} 41. gxh4 {[%clk 0:01:07]}  a2 {[%clk 0:00:17]} 42. Nc2 {[%clk 0:01:05]}  g4 {[%clk 0:00:17]} 43. Re3+ {[%clk 0:01:05]}  Kd7 {[%clk 0:00:15]} 44. Bg3 {[%clk 0:01:04]}  Nc4 {[%clk 0:00:14]} 45. Bxd6 {[%clk 0:01:02]}  Nxe3 {[%clk 0:00:13]} 46. Bxf8 {[%clk 0:00:58]}  Nxc2 {[%clk 0:00:13]} 47. Kxc2 {[%clk 0:00:59]}  Rxf8 {[%clk 0:00:13]} 48. Kb3 {[%clk 0:00:55]}  Rf2 {[%clk 0:00:13]} 49. h5 {[%clk 0:00:55]}  Rh2 {[%clk 0:00:13]} 50. Rg1 {[%clk 0:00:45]}  Rg2 {[%clk 0:00:13]} 51. Re1 {[%clk 0:00:38]}  Re2 {[%clk 0:00:12]} 52. Rg1 {[%clk 0:00:38]}  Rg2 {[%clk 0:00:12]} 53. Ra1 {[%clk 0:00:27]}  g3 {[%clk 0:00:12]} 54. h6 {[%clk 0:00:26]}  Rh2 {[%clk 0:00:12]} 55. Rxa2 {[%clk 0:00:21]}  Rxh6 {[%clk 0:00:08]} 56. Ra7+ {[%clk 0:00:20]}  Kc8 {[%clk 0:00:07]} 57. Rg7 {[%clk 0:00:21]}  Rh3 {[%clk 0:00:06]} 58. b5 {[%clk 0:00:21]}  Kb8 {[%clk 0:00:07]} 59. Kb4 {[%clk 0:00:22]}  Kc8 {[%clk 0:00:07]} 60. Kc5 {[%clk 0:00:22]}  g2 {[%clk 0:00:07]} 61. Rg8+ {[%clk 0:00:21]}  Kb7 {[%clk 0:00:07]} 62. Rg7+ {[%clk 0:00:22]}  Kb8 {[%clk 0:00:07]} 63. Rxg2 {[%clk 0:00:23]}  Rxc3+ {[%clk 0:00:06]} 64. Kxd5 {[%clk 0:00:23]}  Kb7 {[%clk 0:00:06]} 65. Rg6 {[%clk 0:00:22]}  Rc1 {[%clk 0:00:06]} 66. Rc6 {[%clk 0:00:21]}  Rb1 {[%clk 0:00:06]} 67. Rc5 {[%clk 0:00:21]}  Rd1 {[%clk 0:00:05]} 68. Ke5 {[%clk 0:00:21]}  Re1+ {[%clk 0:00:06]} 69. Kd6 {[%clk 0:00:21]}  Rd1 {[%clk 0:00:06]} 70. d5 {[%clk 0:00:21]}  Kb6 {[%clk 0:00:06]} 71. Rc2 {[%clk 0:00:21]}  Kxb5 {[%clk 0:00:06]} 72. Ke6 {[%clk 0:00:21]}  Re1+ {[%clk 0:00:06]} 73. Kd7 {[%clk 0:00:22]}  Kb6 {[%clk 0:00:06]} 74. d6 {[%clk 0:00:22]}  Kb7 {[%clk 0:00:06]} 75. Kd8 {[%clk 0:00:21]}  Kb8 {[%clk 0:00:06]} 76. d7 {[%clk 0:00:20]}  Kb7 {[%clk 0:00:06]} 77. Rb2+ {[%clk 0:00:20]}  Ka7 {[%clk 0:00:06]} 78. Rb4 {[%clk 0:00:19]}  Re2 {[%clk 0:00:03]} 79. Kc7 {[%clk 0:00:18]}  Rc2+ {[%clk 0:00:03]} 80. Kd6 {[%clk 0:00:18]}  Rd2+ {[%clk 0:00:03]} 81. Kc6 {[%clk 0:00:18]}  Rd1 {[%clk 0:00:02]} 82. Rb5 {[%clk 0:00:17]}  Rc1+ {[%clk 0:00:01]} 83. Rc5 {[%clk 0:00:15]}  Rd1 {[%clk 0:00:02]} 84. Rd5 {[%clk 0:00:13]}  Rc1+ {[%clk 0:00:02]} 85. Kd6 {[%clk 0:00:13]}  Rb1 {[%clk 0:00:02]} 86. d8=R {[%clk 0:00:08]}  Rb6+ {[%clk 0:00:01]} 87. Ke5 {[%clk 0:00:08]}  Rb1 {[%clk 0:00:01]} 88. R8d6 {[%clk 0:00:08]}  Re1+ {[%clk 0:00:01]} 89. Kf6 {[%clk 0:00:09]}  Rf1+ {[%clk 0:00:01]} 90. Ke7 {[%clk 0:00:09]}  Re1+ {[%clk 0:00:01]} 91. Re6 {[%clk 0:00:09]}  Rc1 {[%clk 0:00:00]} 92. Rb5 {[%clk 0:00:07]} 1-0


[Site "https://www.chess.com"]

[Event "Titled Tuesday Blitz June 27 Early 2023"]
[White "Moiseenko, Alexander"]
[Black "Ibadov, Dashgyn"]
[WhiteFideId "14102560"]
[BlackFideId "24107514"]
[WhiteElo "2792"]
[BlackElo "2597"]
[Result "1-0"]
[Round "6"]
[TimeControl "180+2"]
[Date "2023.06.27"]
[WhiteClock "0:00:26"]
[BlackClock "0:00:00"]
[Board "55"]

1. d4 {[%clk 0:02:57]}  d5 {[%clk 0:02:58]} 2. c4 {[%clk 0:02:57]}  e6 {[%clk 0:02:58]} 3. Nc3 {[%clk 0:02:58]}  c6 {[%clk 0:02:57]} 4. Nf3 {[%clk 0:02:57]}  Nf6 {[%clk 0:02:57]} 5. Bg5 {[%clk 0:02:56]}  Nbd7 {[%clk 0:02:55]} 6. e3 {[%clk 0:02:57]}  Qa5 {[%clk 0:02:55]} 7. cxd5 {[%clk 0:02:56]}  Nxd5 {[%clk 0:02:53]} 8. Rc1 {[%clk 0:02:55]}  Bb4 {[%clk 0:02:50]} 9. a3 {[%clk 0:02:53]}  Bxc3+ {[%clk 0:02:44]} 10. bxc3 {[%clk 0:02:54]}  Qxa3 {[%clk 0:02:45]} 11. Bd3 {[%clk 0:02:48]}  Nxc3 {[%clk 0:02:34]} 12. Qd2 {[%clk 0:02:46]}  Nd5 {[%clk 0:02:34]} 13. O-O {[%clk 0:02:45]}  O-O {[%clk 0:02:28]} 14. e4 {[%clk 0:02:42]}  N5b6 {[%clk 0:02:24]} 15. h4 {[%clk 0:02:30]}  f6 {[%clk 0:02:06]} 16. Bf4 {[%clk 0:02:22]}  Qe7 {[%clk 0:02:05]} 17. h5 {[%clk 0:02:19]}  e5 {[%clk 0:02:01]} 18. Bg3 {[%clk 0:02:12]}  h6 {[%clk 0:01:57]} 19. Nh4 {[%clk 0:02:03]}  Qf7 {[%clk 0:01:52]} 20. Ng6 {[%clk 0:02:01]}  Re8 {[%clk 0:01:49]} 21. Bb1 {[%clk 0:02:01]}  Nf8 {[%clk 0:01:39]} 22. dxe5 {[%clk 0:01:47]}  Nxg6 {[%clk 0:01:30]} 23. hxg6 {[%clk 0:01:48]}  Qxg6 {[%clk 0:01:29]} 24. exf6 {[%clk 0:01:48]}  gxf6 {[%clk 0:01:20]} 25. Rc3 {[%clk 0:01:36]}  Be6 {[%clk 0:01:14]} 26. Bf4 {[%clk 0:01:35]}  Rad8 {[%clk 0:01:10]} 27. Qc1 {[%clk 0:01:34]}  h5 {[%clk 0:01:05]} 28. Rg3 {[%clk 0:01:32]}  Bg4 {[%clk 0:01:04]} 29. f3 {[%clk 0:01:32]}  Rd4 {[%clk 0:00:33]} 30. fxg4 {[%clk 0:01:30]}  h4 {[%clk 0:00:33]} 31. Rgf3 {[%clk 0:01:16]}  Qxg4 {[%clk 0:00:33]} 32. Be3 {[%clk 0:01:12]}  Rd6 {[%clk 0:00:16]} 33. Qe1 {[%clk 0:01:05]}  Kg7 {[%clk 0:00:10]} 34. Rf4 {[%clk 0:00:53]}  Qg3 {[%clk 0:00:10]} 35. Rxh4 {[%clk 0:00:50]}  Qxe1 {[%clk 0:00:10]} 36. Rxe1 {[%clk 0:00:51]}  Nc4 {[%clk 0:00:11]} 37. Bh6+ {[%clk 0:00:47]}  Kf7 {[%clk 0:00:11]} 38. Ba2 {[%clk 0:00:47]}  Rd4 {[%clk 0:00:12]} 39. Be3 {[%clk 0:00:41]}  Rexe4 {[%clk 0:00:07]} 40. Bxd4 {[%clk 0:00:28]}  Rxe1+ {[%clk 0:00:04]} 41. Kh2 {[%clk 0:00:28]}  Rc1 {[%clk 0:00:02]} 42. Be3 {[%clk 0:00:27]}  b5 {[%clk 0:00:00]} 43. Bxc1 {[%clk 0:00:26]} 1-0


[Site "https://www.chess.com"]

[Event "Titled Tuesday Blitz June 27 Early 2023"]
[White "Aloma Vidal, Robert"]
[Black "Bryakin, Mikhail"]
[WhiteFideId "2260409"]
[BlackFideId "4165314"]
[WhiteElo "2574"]
[BlackElo "2760"]
[Result "0-1"]
[Round "6"]
[TimeControl "180+2"]
[Date "2023.06.27"]
[WhiteClock "0:00:13"]
[BlackClock "0:00:24"]
[Board "59"]

1. e4 {[%clk 0:03:00]}  d5 {[%clk 0:02:54]} 2. exd5 {[%clk 0:03:00]}  Qxd5 {[%clk 0:02:53]} 3. Nc3 {[%clk 0:03:01]}  Qe5+ {[%clk 0:02:53]} 4. Be2 {[%clk 0:02:54]}  Bg4 {[%clk 0:02:52]} 5. d4 {[%clk 0:02:54]}  Bxe2 {[%clk 0:02:53]} 6. Ngxe2 {[%clk 0:02:54]}  Qa5 {[%clk 0:02:53]} 7. b4 {[%clk 0:02:42]}  Qh5 {[%clk 0:02:52]} 8. O-O {[%clk 0:02:37]}  Nf6 {[%clk 0:02:40]} 9. d5 {[%clk 0:02:30]}  e6 {[%clk 0:02:31]} 10. dxe6 {[%clk 0:02:27]}  Bxb4 {[%clk 0:02:30]} 11. exf7+ {[%clk 0:02:20]}  Qxf7 {[%clk 0:02:31]} 12. Rb1 {[%clk 0:02:17]}  Nc6 {[%clk 0:02:30]} 13. Nd4 {[%clk 0:01:29]}  Bxc3 {[%clk 0:01:42]} 14. Nxc6 {[%clk 0:01:29]}  bxc6 {[%clk 0:01:39]} 15. Ba3 {[%clk 0:01:20]}  Qc4 {[%clk 0:01:33]} 16. Rb7 {[%clk 0:01:06]}  Rd8 {[%clk 0:01:08]} 17. Qf3 {[%clk 0:01:02]}  Ba5 {[%clk 0:00:32]} 18. Rd1 {[%clk 0:00:33]}  Rxd1+ {[%clk 0:00:29]} 19. Qxd1 {[%clk 0:00:33]}  Kf7 {[%clk 0:00:27]} 20. Rb3 {[%clk 0:00:28]}  Re8 {[%clk 0:00:25]} 21. c3 {[%clk 0:00:13]}  Bxc3 {[%clk 0:00:24]} 0-1


[Site "https://www.chess.com"]

[Event "Titled Tuesday Blitz June 27 Early 2023"]
[White "Mendez Fortes, Eduardo Jesus"]
[Black "Panesar Vedant"]
[WhiteFideId "3502376"]
[BlackFideId "35033018"]
[WhiteElo "2574"]
[BlackElo "2743"]
[Result "1-0"]
[Round "6"]
[TimeControl "180+2"]
[Date "2023.06.27"]
[WhiteClock "0:00:19"]
[BlackClock "0:00:03"]
[Board "60"]

1. e4 {[%clk 0:03:00]}  c5 {[%clk 0:02:59]} 2. Nf3 {[%clk 0:03:00]}  d6 {[%clk 0:03:00]} 3. d4 {[%clk 0:03:00]}  cxd4 {[%clk 0:03:01]} 4. Nxd4 {[%clk 0:03:01]}  Nf6 {[%clk 0:03:01]} 5. Nc3 {[%clk 0:03:02]}  a6 {[%clk 0:03:02]} 6. Bg5 {[%clk 0:03:02]}  e6 {[%clk 0:03:02]} 7. f4 {[%clk 0:03:03]}  b5 {[%clk 0:03:03]} 8. e5 {[%clk 0:03:02]}  dxe5 {[%clk 0:03:04]} 9. fxe5 {[%clk 0:03:03]}  Qc7 {[%clk 0:03:04]} 10. exf6 {[%clk 0:03:04]}  Qe5+ {[%clk 0:03:05]} 11. Be2 {[%clk 0:03:05]}  Qxg5 {[%clk 0:03:04]} 12. O-O {[%clk 0:03:05]}  Ra7 {[%clk 0:03:03]} 13. Qd3 {[%clk 0:03:05]}  Rd7 {[%clk 0:03:01]} 14. Ne4 {[%clk 0:03:06]}  Qe5 {[%clk 0:03:01]} 15. Nf3 {[%clk 0:03:07]}  Qc7 {[%clk 0:02:57]} 16. Qe3 {[%clk 0:03:07]}  Qa7 {[%clk 0:02:54]} 17. Qxa7 {[%clk 0:02:55]}  Rxa7 {[%clk 0:02:55]} 18. a4 {[%clk 0:02:53]}  bxa4 {[%clk 0:02:39]} 19. Ne5 {[%clk 0:02:48]}  g6 {[%clk 0:02:35]} 20. Rxa4 {[%clk 0:02:42]}  Nd7 {[%clk 0:02:15]} 21. Nc4 {[%clk 0:02:23]}  Nc5 {[%clk 0:01:23]} 22. Ncd6+ {[%clk 0:02:22]}  Bxd6 {[%clk 0:01:14]} 23. Nxd6+ {[%clk 0:02:21]}  Kd7 {[%clk 0:01:15]} 24. Rd4 {[%clk 0:02:07]}  e5 {[%clk 0:01:12]} 25. Rdd1 {[%clk 0:02:05]}  Kc6 {[%clk 0:01:05]} 26. b4 {[%clk 0:01:52]}  Ne6 {[%clk 0:00:56]} 27. Bf3+ {[%clk 0:01:43]}  Kc7 {[%clk 0:00:53]} 28. Nxf7 {[%clk 0:01:41]}  Rf8 {[%clk 0:00:53]} 29. Nxe5 {[%clk 0:01:34]}  Rxf6 {[%clk 0:00:53]} 30. c4 {[%clk 0:01:31]}  Ng5 {[%clk 0:00:46]} 31. Bd5 {[%clk 0:01:22]}  Rxf1+ {[%clk 0:00:45]} 32. Rxf1 {[%clk 0:01:23]}  Kd6 {[%clk 0:00:45]} 33. Nd3 {[%clk 0:01:17]}  Be6 {[%clk 0:00:43]} 34. Nc5 {[%clk 0:00:59]}  Bxd5 {[%clk 0:00:30]} 35. Rd1 {[%clk 0:00:59]}  Kc6 {[%clk 0:00:24]} 36. Rxd5 {[%clk 0:00:57]}  Nf7 {[%clk 0:00:24]} 37. Nb3 {[%clk 0:00:52]}  Re7 {[%clk 0:00:20]} 38. Nd4+ {[%clk 0:00:48]}  Kb7 {[%clk 0:00:17]} 39. c5 {[%clk 0:00:46]}  Ne5 {[%clk 0:00:18]} 40. h3 {[%clk 0:00:32]}  Kc7 {[%clk 0:00:13]} 41. Rd6 {[%clk 0:00:32]}  Rd7 {[%clk 0:00:04]} 42. Ne6+ {[%clk 0:00:28]}  Kc8 {[%clk 0:00:03]} 43. Rxa6 {[%clk 0:00:26]}  Rd2 {[%clk 0:00:04]} 44. c6 {[%clk 0:00:23]}  Nxc6 {[%clk 0:00:02]} 45. Rxc6+ {[%clk 0:00:23]}  Kd7 {[%clk 0:00:03]} 46. Ra6 {[%clk 0:00:23]}  Rb2 {[%clk 0:00:03]} 47. Nc5+ {[%clk 0:00:23]}  Ke7 {[%clk 0:00:03]} 48. Ra7+ {[%clk 0:00:23]}  Kd6 {[%clk 0:00:04]} 49. Rb7 {[%clk 0:00:22]}  Rb1+ {[%clk 0:00:02]} 50. Kh2 {[%clk 0:00:22]}  Kd5 {[%clk 0:00:03]} 51. Nd3 {[%clk 0:00:22]}  Kc6 {[%clk 0:00:03]} 52. Rxh7 {[%clk 0:00:19]}  Rb3 {[%clk 0:00:04]} 53. Ne5+ {[%clk 0:00:19]}  Kd6 {[%clk 0:00:04]} 54. Nxg6 {[%clk 0:00:19]}  Rxb4 {[%clk 0:00:05]} 55. Rh6 {[%clk 0:00:20]}  Ke6 {[%clk 0:00:05]} 56. Nh4+ {[%clk 0:00:19]}  Kf7 {[%clk 0:00:05]} 57. Nf3 {[%clk 0:00:19]}  Kg7 {[%clk 0:00:04]} 58. Rc6 {[%clk 0:00:20]}  Rb5 {[%clk 0:00:04]} 59. Rc4 {[%clk 0:00:20]}  Ra5 {[%clk 0:00:05]} 60. g4 {[%clk 0:00:20]}  Ra3 {[%clk 0:00:04]} 61. Kg3 {[%clk 0:00:20]}  Ra4 {[%clk 0:00:03]} 62. Rxa4 {[%clk 0:00:19]} 1-0


[Site "https://www.chess.com"]

[Event "Titled Tuesday Blitz June 27 Early 2023"]
[White "Csonka, Balazs"]
[Black "Ambartsumova, Karina"]
[WhiteFideId "742910"]
[BlackFideId "4166299"]
[WhiteElo "2722"]
[BlackElo "2574"]
[Result "1-0"]
[Round "6"]
[TimeControl "180+2"]
[Date "2023.06.27"]
[WhiteClock "0:00:17"]
[BlackClock "0:00:00"]
[Board "61"]

1. d4 {[%clk 0:03:00]}  Nf6 {[%clk 0:02:58]} 2. c4 {[%clk 0:02:59]}  e6 {[%clk 0:02:58]} 3. Nc3 {[%clk 0:02:59]}  d5 {[%clk 0:02:58]} 4. Bg5 {[%clk 0:02:55]}  Be7 {[%clk 0:02:57]} 5. e3 {[%clk 0:02:55]}  O-O {[%clk 0:02:53]} 6. Nf3 {[%clk 0:02:54]}  h6 {[%clk 0:02:53]} 7. Bf4 {[%clk 0:02:54]}  b6 {[%clk 0:02:48]} 8. g4 {[%clk 0:02:44]}  Ne4 {[%clk 0:02:39]} 9. h4 {[%clk 0:01:56]}  c5 {[%clk 0:02:33]} 10. g5 {[%clk 0:01:46]}  h5 {[%clk 0:02:06]} 11. Nxe4 {[%clk 0:01:29]}  dxe4 {[%clk 0:02:04]} 12. Ne5 {[%clk 0:01:28]}  g6 {[%clk 0:02:00]} 13. Bg2 {[%clk 0:01:21]}  Bb7 {[%clk 0:01:58]} 14. O-O {[%clk 0:01:21]}  Nd7 {[%clk 0:01:48]} 15. Nxd7 {[%clk 0:01:18]}  Qxd7 {[%clk 0:01:48]} 16. dxc5 {[%clk 0:01:18]}  Qxd1 {[%clk 0:01:46]} 17. Rfxd1 {[%clk 0:01:19]}  Bxc5 {[%clk 0:01:47]} 18. Bd6 {[%clk 0:01:17]}  Rfd8 {[%clk 0:01:43]} 19. Bxc5 {[%clk 0:01:17]}  bxc5 {[%clk 0:01:44]} 20. Kf1 {[%clk 0:00:47]}  Kf8 {[%clk 0:01:43]} 21. Ke1 {[%clk 0:00:47]}  Ke7 {[%clk 0:01:44]} 22. Rxd8 {[%clk 0:00:46]}  Rxd8 {[%clk 0:01:44]} 23. Rd1 {[%clk 0:00:46]}  Rxd1+ {[%clk 0:01:40]} 24. Kxd1 {[%clk 0:00:47]}  f6 {[%clk 0:01:30]} 25. a3 {[%clk 0:00:35]}  a5 {[%clk 0:01:22]} 26. Kc2 {[%clk 0:00:34]}  e5 {[%clk 0:00:48]} 27. gxf6+ {[%clk 0:00:23]}  Kxf6 {[%clk 0:00:48]} 28. b4 {[%clk 0:00:24]}  axb4 {[%clk 0:00:43]} 29. axb4 {[%clk 0:00:25]}  cxb4 {[%clk 0:00:43]} 30. Kb3 {[%clk 0:00:25]}  g5 {[%clk 0:00:15]} 31. hxg5+ {[%clk 0:00:26]}  Kxg5 {[%clk 0:00:16]} 32. Kxb4 {[%clk 0:00:27]}  Bc8 {[%clk 0:00:10]} 33. Bxe4 {[%clk 0:00:22]}  h4 {[%clk 0:00:10]} 34. Kc5 {[%clk 0:00:22]}  h3 {[%clk 0:00:10]} 35. Kd6 {[%clk 0:00:22]}  Kf6 {[%clk 0:00:07]} 36. c5 {[%clk 0:00:18]}  Ba6 {[%clk 0:00:00]} 37. c6 {[%clk 0:00:17]} 1-0


[Site "https://www.chess.com"]

[Event "Titled Tuesday Blitz June 27 Early 2023"]
[White "Hambleton, Aman"]
[Black "Sebag, Marie"]
[WhiteFideId "2606577"]
[BlackFideId "617822"]
[WhiteElo "2704"]
[BlackElo "2564"]
[Result "1-0"]
[Round "6"]
[TimeControl "180+2"]
[Date "2023.06.27"]
[WhiteClock "0:00:03"]
[BlackClock "0:00:00"]
[Board "65"]

1. d4 {[%clk 0:03:00]}  Nf6 {[%clk 0:02:57]} 2. Bf4 {[%clk 0:02:59]}  g6 {[%clk 0:02:56]} 3. Nc3 {[%clk 0:02:56]}  d5 {[%clk 0:02:56]} 4. e3 {[%clk 0:02:56]}  Bg7 {[%clk 0:02:55]} 5. h4 {[%clk 0:02:56]}  h5 {[%clk 0:02:53]} 6. Nf3 {[%clk 0:02:56]}  c5 {[%clk 0:02:51]} 7. Nb5 {[%clk 0:02:56]}  Na6 {[%clk 0:02:51]} 8. c3 {[%clk 0:02:56]}  O-O {[%clk 0:02:48]} 9. a4 {[%clk 0:02:50]}  Bg4 {[%clk 0:02:46]} 10. Be2 {[%clk 0:02:49]}  Rc8 {[%clk 0:02:44]} 11. Nxa7 {[%clk 0:02:48]}  Ra8 {[%clk 0:02:43]} 12. Nb5 {[%clk 0:02:48]}  Ne4 {[%clk 0:02:41]} 13. Nd2 {[%clk 0:02:22]}  Bxe2 {[%clk 0:02:37]} 14. Qxe2 {[%clk 0:02:23]}  Nxd2 {[%clk 0:02:35]} 15. Qxd2 {[%clk 0:02:23]}  Re8 {[%clk 0:02:34]} 16. O-O {[%clk 0:02:13]}  e5 {[%clk 0:02:33]} 17. dxe5 {[%clk 0:02:10]}  Bxe5 {[%clk 0:02:32]} 18. Bxe5 {[%clk 0:02:04]}  Rxe5 {[%clk 0:02:32]} 19. g3 {[%clk 0:02:05]}  Qe7 {[%clk 0:02:27]} 20. Rad1 {[%clk 0:01:31]}  c4 {[%clk 0:02:24]} 21. Qe2 {[%clk 0:00:12]}  Nc5 {[%clk 0:02:21]} 22. Qf3 {[%clk 0:00:12]}  Ne4 {[%clk 0:02:11]} 23. Nd4 {[%clk 0:00:04]}  Rxa4 {[%clk 0:02:06]} 24. Rfe1 {[%clk 0:00:02]}  Ra8 {[%clk 0:02:00]} 25. Kg2 {[%clk 0:00:01]}  Re8 {[%clk 0:01:59]} 26. Ne2 {[%clk 0:00:02]}  Rf5 {[%clk 0:00:49]} 27. Nf4 {[%clk 0:00:02]}  Rd8 {[%clk 0:00:40]} 28. Rd4 {[%clk 0:00:02]}  Nf6 {[%clk 0:00:19]} 29. Red1 {[%clk 0:00:02]}  b5 {[%clk 0:00:19]} 30. R1d2 {[%clk 0:00:02]}  b4 {[%clk 0:00:19]} 31. cxb4 {[%clk 0:00:02]}  Qxb4 {[%clk 0:00:18]} 32. Qd1 {[%clk 0:00:02]}  Qb7 {[%clk 0:00:17]} 33. Kg1 {[%clk 0:00:03]}  Kg7 {[%clk 0:00:16]} 34. Rxc4 {[%clk 0:00:03]}  dxc4 {[%clk 0:00:14]} 35. Rxd8 {[%clk 0:00:03]}  Qxb2 {[%clk 0:00:14]} 36. Rd2 {[%clk 0:00:03]}  Qb7 {[%clk 0:00:12]} 37. Qa1 {[%clk 0:00:03]}  Rc5 {[%clk 0:00:08]} 38. Rd6 {[%clk 0:00:03]}  Qe7 {[%clk 0:00:07]} 39. Qd4 {[%clk 0:00:03]}  Qe5 {[%clk 0:00:06]} 40. Qxe5 {[%clk 0:00:02]}  Rxe5 {[%clk 0:00:06]} 41. Rc6 {[%clk 0:00:03]}  Re4 {[%clk 0:00:05]} 42. Rc7 {[%clk 0:00:02]}  Ng4 {[%clk 0:00:04]} 43. f3 {[%clk 0:00:02]}  Rxe3 {[%clk 0:00:04]} 44. fxg4 {[%clk 0:00:02]}  Rxg3+ {[%clk 0:00:05]} 45. Kf2 {[%clk 0:00:02]}  Rxg4 {[%clk 0:00:05]} 46. Rxc4 {[%clk 0:00:02]}  Kg8 {[%clk 0:00:03]} 47. Rc8+ {[%clk 0:00:02]}  Kg7 {[%clk 0:00:03]} 48. Ng2 {[%clk 0:00:03]}  Ra4 {[%clk 0:00:02]} 49. Kg3 {[%clk 0:00:03]}  Ra3+ {[%clk 0:00:02]} 50. Kh2 {[%clk 0:00:03]}  Ra2 {[%clk 0:00:03]} 51. Rc4 {[%clk 0:00:03]}  Ra3 {[%clk 0:00:03]} 52. Nf4 {[%clk 0:00:02]}  Ra2+ {[%clk 0:00:03]} 53. Kg3 {[%clk 0:00:02]}  Ra3+ {[%clk 0:00:04]} 54. Kg2 {[%clk 0:00:03]}  Ra2+ {[%clk 0:00:04]} 55. Kf3 {[%clk 0:00:03]}  Ra3+ {[%clk 0:00:04]} 56. Kf2 {[%clk 0:00:03]}  Ra2+ {[%clk 0:00:05]} 57. Ne2 {[%clk 0:00:03]}  Rb2 {[%clk 0:00:05]} 58. Rd4 {[%clk 0:00:03]}  Ra2 {[%clk 0:00:05]} 59. Kf3 {[%clk 0:00:02]}  Ra3+ {[%clk 0:00:05]} 60. Kg2 {[%clk 0:00:02]}  Ra2 {[%clk 0:00:05]} 61. Kf2 {[%clk 0:00:03]}  Rb2 {[%clk 0:00:06]} 62. Re4 {[%clk 0:00:03]}  Ra2 {[%clk 0:00:06]} 63. Kf3 {[%clk 0:00:04]}  Ra3+ {[%clk 0:00:06]} 64. Kg2 {[%clk 0:00:04]}  Ra2 {[%clk 0:00:06]} 65. Kh3 {[%clk 0:00:04]}  Ra3+ {[%clk 0:00:07]} 66. Ng3 {[%clk 0:00:05]}  Rb3 {[%clk 0:00:07]} 67. Rd4 {[%clk 0:00:05]}  Ra3 {[%clk 0:00:07]} 68. Rc4 {[%clk 0:00:04]}  Rb3 {[%clk 0:00:07]} 69. Rf4 {[%clk 0:00:04]}  Ra3 {[%clk 0:00:07]} 70. Rf2 {[%clk 0:00:04]}  Rb3 {[%clk 0:00:07]} 71. Re2 {[%clk 0:00:04]}  Ra3 {[%clk 0:00:08]} 72. Kg2 {[%clk 0:00:04]}  Ra4 {[%clk 0:00:08]} 73. Kh3 {[%clk 0:00:02]}  Ra3 {[%clk 0:00:08]} 74. Rd2 {[%clk 0:00:03]}  Rb3 {[%clk 0:00:08]} 75. Rc2 {[%clk 0:00:03]}  Ra3 {[%clk 0:00:08]} 76. Rb2 {[%clk 0:00:03]}  Rc3 {[%clk 0:00:08]} 77. Rb4 {[%clk 0:00:02]}  Ra3 {[%clk 0:00:08]} 78. Kg2 {[%clk 0:00:02]}  Ra2+ {[%clk 0:00:08]} 79. Kf3 {[%clk 0:00:02]}  Ra3+ {[%clk 0:00:08]} 80. Kf4 {[%clk 0:00:02]}  Ra2 {[%clk 0:00:08]} 81. Rc4 {[%clk 0:00:01]}  Rf2+ {[%clk 0:00:07]} 82. Ke3 {[%clk 0:00:02]}  Rg2 {[%clk 0:00:07]} 83. Kf3 {[%clk 0:00:02]}  Ra2 {[%clk 0:00:07]} 84. Ne4 {[%clk 0:00:02]}  Rh2 {[%clk 0:00:06]} 85. Ng5 {[%clk 0:00:02]}  f6 {[%clk 0:00:02]} 86. Rc7+ {[%clk 0:00:02]}  Kg8 {[%clk 0:00:02]} 87. Kg3 {[%clk 0:00:02]}  Ra2 {[%clk 0:00:01]} 88. Ne4 {[%clk 0:00:02]}  Ra3+ {[%clk 0:00:01]} 89. Kf4 {[%clk 0:00:02]}  Ra4 {[%clk 0:00:01]} 90. Kf3 {[%clk 0:00:03]}  Ra3+ {[%clk 0:00:01]} 91. Kf2 {[%clk 0:00:03]}  f5 {[%clk 0:00:01]} 92. Nf6+ {[%clk 0:00:03]}  Kf8 {[%clk 0:00:01]} 93. Nh7+ {[%clk 0:00:03]}  Kg8 {[%clk 0:00:01]} 94. Nf6+ {[%clk 0:00:03]}  Kf8 {[%clk 0:00:00]} 95. Kg2 {[%clk 0:00:03]} 1-0


[Site "https://www.chess.com"]